fUSD/lending_fUSD_20251014
["ID","MTS","AMOUNT","RATE_DAILY","PERIOD"]
[391265069,1760451063657,-621.06,0.00019178,2]
[391265070,1760451063668,-500.0,0.00019178,2]
[391265071,1760451063679,-500.0,0.00019178,2]
[391265072,1760451063690,-675.92,0.00019178,2]
[391265073,1760451063701,-500.0,0.00019178,2]
[391265074,1760451063711,-783.37,0.00019178,2]
[391265075,1760451063723,-1221.9,0.00019178,2]
[391265076,1760451063733,-920.47,0.00019178,2]
[391265077,1760451063744,-526.04,0.00019178,2]
[391265078,1760451063753,-500.0,0.00019178,2]
[391265079,1760451063764,-775.96,0.00019178,2]
[391265080,1760451063775,-2306.23,0.00019178,2]
[391265081,1760451063787,-500.0,0.00019178,2]
[391265082,1760451063797,-537.06,0.00019178,2]
[391265083,1760451063813,-841.79,0.00019178,2]
[391265084,1760451063823,-500.0,0.00019178,2]
[391265085,1760451063833,-597.29,0.00019178,2]
[391265086,1760451063844,-500.0,0.00019178,2]
[391265087,1760451063854,-500.0,0.00019178,2]
[391265088,1760451063864,-1635.28,0.00019178,2]
[391265089,1760451063875,-500.0,0.00019178,2]
[391265090,1760451063885,-500.0,0.00019178,2]
[391265091,1760451063895,-500.0,0.00019178,2]
[391265092,1760451063906,-397.32147719,0.00019178,2]
[391265093,1760451063917,-801.41,0.00019178,2]
[391265094,1760451063927,-953.55,0.00019178,2]
[391265095,1760451063938,-953.55,0.00019178,2]
[391265096,1760451063948,-953.55,0.00019178,2]
[391265097,1760451063958,-953.55,0.00019178,2]
[391265098,1760451063970,-953.55,0.00019178,2]
[391265099,1760451063982,-849.93,0.00019178,2]
[391265100,1760451063993,-500.0,0.00019178,2]
[391265101,1760451064004,-953.55,0.00019178,2]
[391265102,1760451064015,-953.55,0.00019178,2]
[391265103,1760451064025,-953.55,0.00019178,2]
[391265104,1760451064036,-953.55,0.00019178,2]
[391265105,1760451064047,-500.0,0.00019178,2]
[391265106,1760451064061,-953.55,0.00019178,2]
[391265107,1760451064074,-1529.28,0.00019178,2]
[391265108,1760451064085,-953.55,0.00019178,2]
[391265109,1760451064097,-500.0,0.00019178,2]
[391265110,1760451064108,-953.55,0.00019178,2]
[391265111,1760451064121,-1136.3,0.00019178,2]
[391265112,1760451064133,-953.55,0.00019178,2]
[391265113,1760451064145,-953.55,0.00019178,2]
[391265114,1760451064156,-1321.75,0.00019178,2]
[391265115,1760451064167,-953.55,0.00019178,2]
[391265116,1760451064178,-953.55,0.00019178,2]
[391265117,1760451064188,-953.55,0.00019178,2]
[391265118,1760451064199,-675.4,0.00019178,2]
[391265119,1760451064210,-2710.43,0.00019178,2]
[391265120,1760451064220,-500.0,0.00019178,2]
[391265121,1760451064230,-500.0,0.00019178,2]
[391265122,1760451064240,-2982.96,0.00019178,2]
[391265123,1760451064251,-1170.41,0.00019178,2]
[391265124,1760451064261,-500.0,0.00019178,2]
[391265125,1760451064272,-1511.11,0.00019178,2]
[391265126,1760451064282,-500.0,0.00019178,2]
[391265127,1760451064294,-500.0,0.00019178,2]
[391265128,1760451064309,-500.0,0.00019178,2]
[391265129,1760451064320,-500.0,0.00019178,2]
[391265130,1760451064330,-500.0,0.00019178,2]
[391265131,1760451064341,-441.72128022,0.00019178,2]
[391265132,1760451064351,-500.0,0.00019178,2]
[391265133,1760451064361,-782.97,0.00019178,2]
[391265134,1760451064372,-500.0,0.00019178,2]
[391265135,1760451064383,-563.35,0.00019178,2]
[391265136,1760451064394,-500.0,0.00019178,2]
[391265137,1760451064404,-500.0,0.00019178,2]
[391265138,1760451064415,-684.34,0.00019178,2]
[391265139,1760451064426,-500.0,0.00019178,2]
[391265140,1760451064437,-500.0,0.00019178,2]
[391265141,1760451064447,-1000.0,0.00019178,2]
[391265142,1760451064459,-546.64,0.00019178,2]
[391265143,1760451064470,-546.64,0.00019178,2]
[391265144,1760451064480,-500.0,0.00019178,2]
[391265145,1760451064491,-500.0,0.00019178,2]
[391265146,1760451064501,-546.64,0.00019178,2]
[391265147,1760451064512,-500.0,0.00019178,2]
[391265148,1760451064522,-546.64,0.00019178,2]
[391265149,1760451064532,-546.64,0.00019178,2]
[391265150,1760451064543,-546.64,0.00019178,2]
[391265151,1760451064553,-546.64,0.00019178,2]
[391265152,1760451064566,-546.64,0.00019178,2]
[391265153,1760451064577,-546.64,0.00019178,2]
[391265154,1760451064587,-546.64,0.00019178,2]
[391265155,1760451064597,-546.64,0.00019178,2]
[391265156,1760451064607,-546.64,0.00019178,2]
[391265157,1760451064617,-500.0,0.00019178,2]
[391265158,1760451064628,-546.64,0.00019178,2]
[391265159,1760451064638,-546.64,0.00019178,2]
[391265160,1760451064648,-1931.6,0.00019178,2]
[391265161,1760451064658,-546.64,0.00019178,2]
[391265162,1760451064668,-500.0,0.00019178,2]
[391265163,1760451064679,-546.64,0.00019178,2]
[391265164,1760451064691,-546.64,0.00019178,2]
[391265165,1760451064701,-697.81,0.00019178,2]
[391265166,1760451064711,-1285.44,0.00019178,2]
[391265167,1760451064722,-2460.96,0.00019178,2]
[391265168,1760451064732,-500.0,0.00019178,2]
[391265169,1760451064743,-500.0,0.00019178,2]
[391265170,1760451064753,-882.91,0.00019178,2]
[391265171,1760451064763,-500.0,0.00019178,2]
[391265172,1760451064773,-500.0,0.00019178,2]
[391265173,1760451064784,-500.0,0.00019178,2]
[391265174,1760451064794,-4582.95,0.00019178,2]
[391265175,1760451064808,-3002.56,0.00019178,2]
[391265176,1760451064819,-500.0,0.00019178,2]
[391265177,1760451064829,-500.0,0.00019178,2]
[391265178,1760451064839,-731.01,0.00019178,2]
[391265179,1760451064849,-500.0,0.00019178,2]
[391265180,1760451064859,-2095.97,0.00019178,2]
[391265181,1760451064870,-511.45,0.00019178,2]
[391265182,1760451064881,-612.62,0.00019178,2]
[391265183,1760451064891,-562.08,0.00019178,2]
[391265184,1760451064902,-500.0,0.00019178,2]
[391265185,1760451064913,-1379.07,0.00019178,2]
[391265186,1760451064923,-1042.65,0.00019178,2]
[391265187,1760451064934,-1022.78,0.00019178,2]
[391265188,1760451064945,-151.91598947,0.00019178,2]
[391265189,1760451064955,-500.0,0.00019178,2]
[391265190,1760451064965,-500.0,0.00019178,2]
[391265191,1760451064975,-500.0,0.00019178,2]
[391265192,1760451064985,-528.3,0.00019178,2]
[391265193,1760451064996,-500.0,0.00019178,2]
[391265194,1760451065007,-1237.17,0.00019178,2]
[391265195,1760451065019,-500.0,0.00019178,2]
[391265196,1760451065030,-500.0,0.00019178,2]
[391265197,1760451065041,-704.67,0.00019178,2]
[391265198,1760451065053,-500.0,0.00019178,2]
[391265199,1760451065065,-500.0,0.00019178,2]
[391265200,1760451065083,-1397.04,0.00019178,2]
[391265201,1760451065096,-500.0,0.00019178,2]
[391265202,1760451065111,-500.0,0.00019178,2]
[391265203,1760451065125,-500.0,0.00019178,2]
[391265204,1760451065137,-500.0,0.00019178,2]
[391265205,1760451065148,-2305.77,0.00019178,2]
[391265206,1760451065162,-500.0,0.00019178,2]
[391265207,1760451065174,-628.91,0.00019178,2]
[391265208,1760451065187,-2133.51,0.00019178,2]
[391265209,1760451065199,-500.0,0.00019178,2]
[391265210,1760451065211,-648.44,0.00019178,2]
[391265211,1760451065224,-500.0,0.00019178,2]
[391265212,1760451065235,-895.5,0.00019178,2]
[391265213,1760451065247,-500.0,0.00019178,2]
[391265214,1760451065257,-500.0,0.00019178,2]
[391265215,1760451065269,-1020.15,0.00019178,2]
[391265216,1760451065280,-500.0,0.00019178,2]
[391265217,1760451065292,-500.0,0.00019178,2]
[391265218,1760451065305,-500.0,0.00019178,2]
[391265219,1760451065319,-580.78,0.00019178,2]
[391265220,1760451065330,-500.0,0.00019178,2]
[391265221,1760451065341,-528.62,0.00019178,2]
[391265222,1760451065351,-500.0,0.00019178,2]
[391265223,1760451065362,-500.0,0.00019178,2]
[391265224,1760451065372,-559.51,0.00019178,2]
[391265225,1760451065382,-500.0,0.00019178,2]
[391265226,1760451065392,-500.0,0.00019178,2]
[391265227,1760451065402,-500.0,0.00019178,2]
[391265228,1760451065412,-170.39889296,0.00019178,2]
[391265229,1760451065422,-2649.15,0.00019178,2]
[391265230,1760451065432,-2001.72,0.00019178,2]
[391265231,1760451065443,-200.0,0.00019178,2]
[391265232,1760451065454,-211.86,0.00019201,2]
[391265233,1760451065464,-2859.78080542,0.00019224,2]
[391265234,1760451065474,-500.0,0.00019233,2]
[391265235,1760451065485,-500.0,0.00019288,2]
[391265236,1760451065495,-296.0518754,0.00019307,2]
[391265237,1760451065506,-1233.0,0.00019314,2]
[391265238,1760451065516,-1233.0,0.00019314,2]
[391265239,1760451065527,-1233.0,0.00019314,2]
[391265240,1760451065537,-1233.0,0.00019314,2]
[391265241,1760451065548,-1233.0,0.00019314,2]
[391265242,1760451065563,-1233.0,0.00019314,2]
[391265243,1760451065573,-1233.0,0.00019314,2]
[391265244,1760451065583,-1233.0,0.00019314,2]
[391265245,1760451065594,-1233.0,0.00019314,2]
[391265246,1760451065605,-1233.0,0.00019314,2]
[391265247,1760451065616,-1233.0,0.00019314,2]
[391265248,1760451065628,-1233.0,0.00019314,2]
[391265249,1760451065639,-1233.0,0.00019314,2]
[391265250,1760451065650,-1233.0,0.00019314,2]
[391265251,1760451065662,-1233.0,0.00019314,2]
[391265252,1760451065674,-1233.0,0.00019314,2]
[391265253,1760451065686,-1233.0,0.00019314,2]
[391265254,1760451065697,-1233.0,0.00019314,2]
[391265255,1760451065708,-1233.0,0.00019314,2]
[391265256,1760451065720,-1233.0,0.00019314,2]
[391265257,1760451065732,-1233.0,0.00019314,2]
[391265258,1760451065743,-1233.0,0.00019314,2]
[391265259,1760451065755,-1233.0,0.00019314,2]
[391265260,1760451065767,-1233.0,0.00019314,2]
[391265261,1760451065778,-1233.0,0.00019314,2]
[391265262,1760451065789,-1233.0,0.00019314,2]
[391265263,1760451065800,-1233.0,0.00019314,2]
[391265264,1760451065813,-1233.0,0.00019314,2]
[391265265,1760451065825,-1233.0,0.00019314,2]
[391265266,1760451065836,-1233.0,0.00019314,2]
[391265267,1760451065847,-1233.0,0.00019314,2]
[391265268,1760451065858,-1233.0,0.00019314,2]
[391265269,1760451065869,-1233.0,0.00019314,2]
[391265270,1760451065880,-1233.0,0.00019314,2]
[391265271,1760451065891,-1233.0,0.00019314,2]
[391265272,1760451065902,-1233.0,0.00019314,2]
[391265273,1760451065913,-1233.0,0.00019314,2]
[391265274,1760451065924,-211.86,0.00019324,2]
[391265275,1760451065934,-220.82503567,0.00019329,2]
[391265276,1760451065945,-500.0,0.00019342,2]
[391265277,1760451065956,-206.62289369,0.00019352,2]
[391265278,1760451065967,-9719.00452205,0.00019352,2]
[391265279,1760451065977,-1017.14695288,0.00019352,2]
[391265280,1760451065989,-176.42419016,0.00019352,3]
[391265281,1760451065999,-2013.49930347,0.00019385,2]
[391265282,1760451066011,-245.76,0.00019393,2]
[391265283,1760451066022,-500.0,0.00019397,2]
[391265284,1760451066033,-6440.0,0.00019407,2]
[391265285,1760451066044,-166.66,0.00019408,2]
[391265286,1760451066055,-500.0,0.00019451,2]
[391265287,1760451066068,-500.0,0.00019451,2]
[391265288,1760451066079,-500.0,0.00019451,2]
[391265289,1760451066097,-245.29,0.00019451,2]
[391265290,1760451066109,-953.55,0.00019451,2]
[391265291,1760451066122,-953.55,0.00019451,2]
[391265292,1760451066133,-953.55,0.00019451,2]
[391265293,1760451066144,-953.55,0.00019451,2]
[391265294,1760451066155,-953.55,0.00019451,2]
[391265295,1760451066167,-953.55,0.00019451,2]
[391265296,1760451066179,-953.65283314,0.00019451,2]
[391265297,1760451066190,-546.64,0.00019451,2]
[391265298,1760451066201,-546.64,0.00019451,2]
[391265299,1760451066211,-546.64,0.00019451,2]
[391265300,1760451066222,-546.64,0.00019451,2]
[391265301,1760451066232,-546.64,0.00019451,2]
[391265302,1760451066243,-546.64,0.00019451,2]
[391265303,1760451066253,-546.86528649,0.00019451,2]
[391265304,1760451066264,-151.0,0.00019451,2]
[391265305,1760451066275,-151.0,0.00019451,2]
[391265306,1760451066285,-151.0,0.00019451,2]
[391265307,1760451066295,-151.0,0.00019451,2]
[391265308,1760451066309,-151.0,0.00019451,2]
[391265309,1760451066319,-151.0,0.00019451,2]
[391265310,1760451066330,-151.0,0.00019451,2]
[391265311,1760451066341,-151.0,0.00019451,2]
[391265312,1760451066352,-151.0,0.00019451,2]
[391265313,1760451066362,-151.0,0.00019451,2]
[391265314,1760451066373,-151.0,0.00019451,2]
[391265315,1760451066384,-151.0,0.00019451,2]
[391265316,1760451066395,-151.0,0.00019451,2]
[391265317,1760451066406,-151.0,0.00019451,2]
[391265318,1760451066417,-151.0,0.00019451,2]
[391265319,1760451066427,-500.0,0.00019452,2]
[391265320,1760451066437,-388.48988448,0.00019452,7]
[391265321,1760451066448,-500.0,0.00019452,2]
[391265322,1760451066458,-1472.18,0.00019452,2]
[391265323,1760451066468,-839.97,0.00019452,2]
[391265324,1760451066478,-500.0,0.00019452,2]
[391265325,1760451066488,-500.0,0.00019452,2]
[391265326,1760451066499,-358.72867408,0.00019452,2]
[391265327,1760451066509,-1795.07,0.00019452,2]
[391265328,1760451066519,-526.52,0.00019452,2]
[391265329,1760451066529,-500.0,0.00019452,2]
[391265330,1760451066539,-549.89,0.00019452,2]
[391265331,1760451066550,-500.0,0.00019452,2]
[391265332,1760451066562,-602.42,0.00019452,2]
[391265333,1760451066572,-1336.08,0.00019452,2]
[391265334,1760451066583,-500.0,0.00019452,2]
[391265335,1760451066593,-1679.06,0.00019452,2]
[391265336,1760451066604,-1445.93,0.00019452,2]
[391265337,1760451066615,-756.18,0.00019452,2]
[391265338,1760451066626,-500.0,0.00019452,2]
[391265339,1760451066636,-608.55,0.00019452,2]
[391265340,1760451066646,-511.28,0.00019452,2]
[391265341,1760451066657,-1485.95,0.00019452,2]
[391265342,1760451066667,-1950.33,0.00019452,2]
[391265343,1760451066677,-1021.29,0.00019452,2]
[391265344,1760451066687,-747.41,0.00019452,2]
[391265345,1760451066698,-598.69,0.00019452,2]
[391265346,1760451066708,-1602.1,0.00019452,2]
[391265347,1760451066720,-500.0,0.00019452,2]
[391265348,1760451066730,-500.0,0.00019452,2]
[391265349,1760451066740,-500.0,0.00019452,2]
[391265350,1760451066750,-3196.74,0.00019452,2]
[391265351,1760451066760,-675.59,0.00019452,2]
[391265352,1760451066771,-969.0,0.00019452,2]
[391265353,1760451066780,-600.15,0.00019452,2]
[391265354,1760451066791,-500.0,0.00019452,2]
[391265355,1760451066801,-730.21,0.00019452,2]
[391265356,1760451066812,-500.0,0.00019452,2]
[391265357,1760451066822,-95.73067186,0.00019452,2]
[391265358,1760451066846,-404.26932814,0.00019452,2]
[391265359,1760451066857,-1290.03,0.00019452,2]
[391265360,1760451066868,-541.65,0.00019452,2]
[391265361,1760451066878,-500.0,0.00019452,2]
[391265362,1760451066889,-1121.14,0.00019452,2]
[391265363,1760451066899,-1604.92,0.00019452,2]
[391265364,1760451066910,-500.0,0.00019452,2]
[391265365,1760451066920,-584.5,0.00019452,2]
[391265366,1760451066931,-537.8,0.00019452,2]
[391265367,1760451066941,-500.0,0.00019452,2]
[391265368,1760451066951,-549.71,0.00019452,2]
[391265369,1760451066962,-299.17054075,0.00019452,2]
[391265370,1760451066972,-500.0,0.00019452,2]
[391265371,1760451066982,-502.69,0.00019452,2]
[391265372,1760451066992,-500.0,0.00019452,2]
[391265373,1760451067002,-500.0,0.00019452,2]
[391265374,1760451067012,-500.0,0.00019452,2]
[391265375,1760451067023,-1669.56,0.00019452,2]
[391265376,1760451067035,-1623.19,0.00019452,2]
[391265377,1760451067045,-500.0,0.00019452,2]
[391265378,1760451067056,-1268.53,0.00019452,2]
[391265379,1760451067070,-500.0,0.00019452,2]
[391265380,1760451067086,-1047.02,0.00019452,2]
[391265381,1760451067097,-1003.4,0.00019452,2]
[391265382,1760451067107,-500.0,0.00019452,2]
[391265383,1760451067118,-1134.2,0.00019452,2]
[391265384,1760451067128,-580.76,0.00019452,2]
[391265385,1760451067139,-500.0,0.00019452,2]
[391265386,1760451067149,-1431.11,0.00019452,2]
[391265387,1760451067159,-500.0,0.00019452,2]
[391265388,1760451067171,-2092.81,0.00019452,2]
[391265389,1760451067181,-1143.23,0.00019452,2]
[391265390,1760451067192,-958.25,0.00019452,2]
[391265391,1760451067202,-528.41,0.00019452,2]
[391265392,1760451067213,-1785.59,0.00019452,2]
[391265393,1760451067225,-1773.69,0.00019452,2]
[391265394,1760451067236,-500.0,0.00019452,2]
[391265395,1760451067246,-500.0,0.00019452,2]
[391265396,1760451067257,-1485.71,0.00019452,2]
[391265397,1760451067267,-1421.82,0.00019452,2]
[391265398,1760451067278,-500.0,0.00019452,2]
[391265399,1760451067289,-1877.9,0.00019452,2]
[391265400,1760451067299,-1362.35,0.00019452,2]
[391265401,1760451067314,-1754.13,0.00019452,2]
[391265402,1760451067324,-1098.0,0.00019452,2]
[391265403,1760451067335,-500.0,0.00019452,2]
[391265404,1760451067345,-500.0,0.00019452,2]
[391265405,1760451067356,-500.0,0.00019452,2]
[391265406,1760451067366,-500.0,0.00019452,2]
[391265407,1760451067377,-473.5764927,0.00019452,2]
[391265408,1760451067387,-1846.56,0.00019452,2]
[391265409,1760451067398,-1446.76,0.00019452,2]
[391265410,1760451067410,-500.0,0.00019452,2]
[391265411,1760451067421,-500.0,0.00019452,2]
[391265412,1760451067433,-500.0,0.00019452,2]
[391265413,1760451067444,-708.92,0.00019452,2]
[391265414,1760451067454,-500.0,0.00019452,2]
[391265415,1760451067466,-500.0,0.00019452,2]
[391265416,1760451067477,-500.0,0.00019452,2]
[391265417,1760451067488,-500.0,0.00019452,2]
[391265418,1760451067499,-500.0,0.00019452,2]
[391265419,1760451067509,-158.99057382,0.00019452,2]
[391265420,1760451067537,-421.9602,0.00015908,2]
[391265421,1760451067550,-78.0398,0.00015908,2]
[391265422,1760451067565,-341.00942618,0.00019452,2]
[391265423,1760451067576,-500.0,0.00019452,2]
[391265424,1760451067587,-500.0,0.00019452,2]
[391265425,1760451067598,-500.0,0.00019452,2]
[391265426,1760451067609,-500.0,0.00019452,2]
[391265427,1760451067619,-500.0,0.00019452,2]
[391265428,1760451067630,-500.0,0.00019452,2]
[391265429,1760451067641,-500.0,0.00019452,2]
[391265430,1760451067651,-500.0,0.00019452,2]
[391265431,1760451067662,-500.0,0.00019452,2]
[391265432,1760451067674,-500.0,0.00019452,2]
[391265433,1760451067686,-500.0,0.00019452,2]
[391265434,1760451067697,-500.0,0.00019452,2]
[391265435,1760451067708,-1356.28,0.00019452,2]
[391265436,1760451067718,-500.0,0.00019452,2]
[391265437,1760451067729,-446.2171912,0.00019452,2]
[391265438,1760451067741,-500.0,0.00019452,2]
[391265439,1760451067752,-1179.76,0.00019452,2]
[391265440,1760451067762,-500.0,0.00019452,2]
[391265441,1760451067773,-500.0,0.00019452,2]
[391265442,1760451067784,-500.0,0.00019452,2]
[391265443,1760451067795,-845.49,0.00019452,2]
[391265444,1760451067807,-500.0,0.00019452,2]
[391265445,1760451067818,-500.0,0.00019452,2]
[391265446,1760451067829,-500.0,0.00019452,2]
[391265447,1760451067839,-285.61654783,0.00019452,2]
[391265448,1760451067850,-500.0,0.00019452,2]
[391265449,1760451067860,-476.29,0.00019452,2]
[391265450,1760451067872,-500.0,0.00019452,2]
[391265451,1760451067883,-500.0,0.00019452,2]
[391265452,1760451067894,-500.0,0.00019452,2]
[391265453,1760451067905,-500.0,0.00019452,2]
[391265454,1760451067915,-500.0,0.00019452,2]
[391265455,1760451067927,-500.0,0.00019452,2]
[391265456,1760451067938,-500.0,0.00019452,2]
[391265457,1760451067954,-500.0,0.00019452,2]
[391265458,1760451067965,-500.0,0.00019452,2]
[391265459,1760451067977,-2032.6,0.00019452,2]
[391265460,1760451067991,-238.69703479,0.00019452,2]
[391265462,1760451133378,12773.80944176,0.00012749,2]
[391265463,1760451133397,15000.0,0.00012749,2]
[391265464,1760451133416,15000.0,0.00012749,2]
[391265465,1760451133436,15000.0,0.00012749,2]
[391265466,1760451133455,15000.0,0.00012749,2]
[391265467,1760451133475,15000.0,0.00012749,2]
[391265468,1760451133494,15000.0,0.00012749,2]
[391265469,1760451133513,15000.0,0.00012749,2]
[391265470,1760451133532,15000.0,0.00012749,2]
[391265471,1760451133553,15000.0,0.00012749,2]
[391265472,1760451133573,15000.0,0.00012749,2]
[391265473,1760451133592,15000.0,0.00012749,2]
[391265474,1760451133614,15000.0,0.00012749,2]
[391265475,1760451133633,15000.0,0.00012749,2]
[391265476,1760451133651,15000.0,0.00012749,2]
[391265477,1760451133671,15000.0,0.00012749,2]
[391265478,1760451133691,15000.0,0.00012749,2]
[391265479,1760451133710,15000.0,0.00012749,2]
[391265480,1760451133730,15000.0,0.00012749,2]
[391265481,1760451133752,15000.0,0.00012749,2]
[391265482,1760451133772,15000.0,0.00012749,2]
[391265483,1760451133791,15000.0,0.00012749,2]
[391265484,1760451133809,15000.0,0.00012749,2]
[391265485,1760451133829,15000.0,0.00012749,2]
[391265486,1760451133847,15000.0,0.00012749,2]
[391265487,1760451133868,15000.0,0.00012749,2]
[391265488,1760451133888,15000.0,0.00012749,2]
[391265489,1760451133908,8131.21055824,0.00012749,2]
[391265490,1760451193762,500.0,0.00027397,120]
[391265491,1760451198355,2000.0,0.00027397,120]
[391265492,1760451217083,500.0,0.00027397,120]
[391265493,1760451335745,500.0,0.00027397,120]
[391265502,1760451500426,253.59,8.873e-05,2]
[391265503,1760451500629,253.59,9.34e-05,2]
[391265504,1760451500892,253.59,9.807e-05,2]
[391265505,1760451501107,253.59,0.00010274,2]
[391265506,1760451501340,253.59,0.00010741,2]
[391265507,1760451501589,253.59,0.00011208,2]
[391265508,1760451501833,253.59,0.00011675,2]
[391265509,1760451502049,253.59,0.00012142,2]
[391265510,1760451502283,253.59,0.00012609,2]
[391265519,1760451725671,1851.59,0.00027397,120]
[391265520,1760451795245,500.0,0.00027397,120]
[391265521,1760451799131,2000.0,0.00027397,120]
[391265522,1760451816490,500.0,0.00027397,120]
[391265523,1760451822476,500.0,0.00027397,120]
[391265524,1760451906524,-253.59,0.00013076,2]
[391265525,1760451906547,-1754.33146189,0.00013259,2]
[391265526,1760451909645,-233.98753052,0.00013259,2]
[391265543,1760452131467,-11.68100759,0.00013259,2]
[391265544,1760452131489,-284.45899241,0.00013341,2]
[391265545,1760452133114,-302.5993359,0.00013341,2]
[391265546,1760452134521,-306.52,0.00013341,2]
[391265565,1760452232071,-371.0853,0.00013159,2]
[391265567,1760452232081,-1200.0,0.0001334,2]
[391265569,1760452232090,-300.0,0.0001334,2]
[391265571,1760452232099,-300.0,0.0001334,2]
[391265573,1760452232109,-10157.80155289,0.00013341,2]
[391265575,1760452232119,-253.59,0.00013543,2]
[391265577,1760452232128,-338.15,0.00013699,2]
[391265578,1760452232138,-2007.92146189,0.00013699,2]
[391265579,1760452232147,-253.59,0.0001401,2]
[391265580,1760452232157,-200.0,0.0001441,2]
[391265581,1760452232166,-490.4,0.00014476,3]
[391265582,1760452232176,-253.59,0.00014477,2]
[391265583,1760452232185,-227.12959488,0.00014576,2]
[391265584,1760452232195,-334.0,0.00014576,2]
[391265585,1760452232204,-150.0,0.00014584,2]
[391265586,1760452232213,-195.0,0.00014585,2]
[391265587,1760452232222,-7393.63050852,0.00014585,2]
[391265588,1760452232234,-2100.46949148,0.00014585,2]
[391265589,1760452232243,-6.90291545,0.00014585,2]
[391265590,1760452232255,-2509.39391394,0.00014585,2]
[391265591,1760452232273,-646.21618259,0.00014585,2]
[391265592,1760452232290,-902.7891928,0.00014585,2]
[391265593,1760452232301,-259.69942639,0.00014585,2]
[391265594,1760452232312,-1075.21999539,0.00014585,2]
[391265595,1760452232324,-460.51348595,0.00014585,2]
[391265596,1760452232335,-1487.52828321,0.00014585,2]
[391265597,1760452232346,-2651.72660428,0.00014585,2]
[391265598,1760452232356,-2000.0,0.00014585,2]
[391265599,1760452232365,-2000.0,0.00014675,2]
[391265600,1760452232379,-214.0,0.00014737,2]
[391265601,1760452232388,-264.0,0.00014767,2]
[391265602,1760452232397,-72.58836755,0.00014771,2]
[391265603,1760452232418,-1119.41163245,0.00014771,2]
[391265604,1760452232427,-1233.0,0.00014801,2]
[391265605,1760452232437,-171.25503342,0.000149,2]
[391265606,1760452232447,-7926.15861491,0.000149,2]
[391265607,1760452232456,-253.59,0.00014944,2]
[391265608,1760452232465,-500.0,0.00014973,2]
[391265609,1760452232474,-500.0,0.00014973,2]
[391265610,1760452232483,-500.0,0.00014973,2]
[391265611,1760452232492,-2115.0,0.00014986,2]
[391265612,1760452232501,-171.26,0.0001499,2]
[391265614,1760452232510,-206.9549592,0.0001499,2]
[391265616,1760452232519,-239.24,0.0001499,2]
[391265618,1760452232532,-270.0112705,0.00014991,2]
[391265620,1760452232542,-239.52877829,0.00014991,2]
[391265622,1760452232551,-200.0,0.00014991,2]
[391265624,1760452232561,-151.0,0.00014991,2]
[391265626,1760452232570,-151.0,0.00014991,2]
[391265628,1760452232579,-151.0,0.00014991,2]
[391265630,1760452232588,-151.0,0.00014991,2]
[391265632,1760452232597,-151.0,0.00014991,2]
[391265634,1760452232607,-266.41599032,0.00014991,2]
[391265636,1760452232616,-150.0,0.00014999,2]
[391265637,1760452232626,-408.6661949,0.00014999,2]